[Event "Prague Festival Masters 2024"]
[Site "Prague"]
[Date "2024.02.29"]
[Round "3.1"]
[White "Praggnanandhaa R"]
[Black "Rapport, Richard"]
[Result "0-1"]
[ECO "E71"]
[WhiteElo "2743"]
[BlackElo "2717"]
[Annotator "TA"]
[PlyCount "66"]
[EventDate "2024.02.22"]
[EventType "tourn"]
[EventCountry "CZE"]
[SourceTitle "playchess.com"]
[Source "ChessBase"]
[SourceQuality "1"]
[TimeControl "40/5400+30:1800+30"]

{[%evp 10,66,42,32,33,33,41,61,64,42,25,30,57,65,77,59,44,52,53,56,101,76,156,141,210,225,256,206,425,404,691,683,523,496,473,477,493,431,740,740,740,740,672,642,876,472,735,457,464,-18,-23,-32,-31,-65,-65,-1110,-1040,-29968,-29969]} 1. d4 {[%emt 0:00:45]} Nf6 {[%emt 0:01:24]} 2. c4 {[%emt 0:00:07]} g6 {[%emt 0:00:15]} 3. Nc3 {[%emt 0:00:17]} Bg7 {[%emt 0:00:39]} 4. e4 {[%emt 0:00:07]} d6 {[%emt 0:00:04]} 5. h3 {[%emt 0:00:12]} O-O {[%emt 0:02:39]} 6. Be3 {[%emt 0:00:24]} Nc6 {[%emt 0:01:23]} 7. d5 {[%emt 0:00:32]} Ne5 {[%emt 0:00:06]} 8. f4 {[%emt 0:00:07]} Ned7 {[%emt 0:00:04] White is slightly better.} 9. Nge2 {[%emt 0:00:21]} c6 {[%emt 0:12:12]} 10. Ng3 {[%emt 0:01:07]} Ne8 {[%emt 0:19:52]} 11. Be2 {[%emt 0:12:05]} e6 {[%emt 0:06:22]} 12. dxe6 {[%emt 0:01:50]} fxe6 {[%emt 0:01:19]} 13. h4 {[%emt 0:10:22][%cal Bh3h4,Bh4h5][%mdl 32]} Bf6 $1 {[%emt 0:06:59]} 14. Bd3 {[%emt 0:24:36]} Nc5 {[%emt 0:12:53]} 15. Bc2 {[%emt 0:03:35][%cal Oe4e5] And now e5! would win.} Qa5 {[%emt 0:08:22]} (15... Ng7 $142) 16. Qd2 $16 {[%emt 0:12:24]} Qb4 {[%emt 0:00:07]} (16... Bxc3 $16 17. bxc3 e5) 17. O-O-O $18 {[%emt 0:03:02]} Qxc4 {[%emt 0:07:49]} 18. h5 {[%emt 0:00:17]} b5 $2 {[%emt 0:02:44]} (18... Bxc3 {keeps fighting.} 19. Qxc3 (19. bxc3 Qxa2 20. Bxc5 dxc5 $18) 19... Qxc3 20. bxc3 gxh5 21. Bxc5 (21. Rxh5 Nd7 $18) (21. Nxh5 b6 $18) 21... dxc5 22. Nxh5 Ng7 23. Nxg7 Kxg7) 19. e5 {[%emt 0:05:12]} dxe5 {[%emt 0:02:30]} (19... b4 $142 20. Qe2 (20. Nce4 b3 $14) 20... Qxe2 21. Ncxe2 b3) 20. Bxc5 {[%emt 0:03:48]} Qxc5 {[%emt 0:00:06]} 21. Nge4 {[%emt 0:02:15]} (21. hxg6 exf4 22. Rxh7 (22. gxh7+ Kh8 $14) 22... b4 $18) 21... Qe7 {[%emt 0:00:42]} 22. Nxf6+ {[%emt 0:03:21]} (22. hxg6 exf4 23. Nxf6+ (23. gxh7+ Kh8 $16) (23. Qxf4 Bxc3 24. Qh6 hxg6 $18) (23. Rxh7 Bg7 $18) 23... Nxf6 24. Qxf4 (24. gxh7+ Kh8 $16) 24... Qg7 $18) 22... Qxf6 {[%emt 0:02:33]} 23. g3 {[%emt 0:04:10] Threatens to win with hxg6.} exf4 {[%emt 0:00:50]} (23... g5 $142 24. fxg5 Qg7) 24. hxg6 {[%emt 0:01:22]} fxg3 {[%emt 0:00:27]} 25. g7 {[%emt 0:02:02]} (25. gxh7+ Kh8 $14) (25. Rxh7 Qf4 $14) 25... Rf7 {[%emt 0:00:41]} 26. Rxh7 {[%emt 0:02:16][%cal Bh1h7,Bh7h8,Bh8e8][%mdl 32]} (26. Bxh7+ Kxg7 27. Rdg1 Qf4 $11) 26... e5 {[%emt 0:02:40]} 27. Rh8+ {[%emt 0:03:02]} Kxg7 {[%emt 0:00:02]} 28. Rxe8 {[%emt 0:00:04]} Qf4 {[%emt 0:00:37]} 29. Rh1 $2 {[%emt 0:02:30]} (29. Qxf4 $18 exf4 30. Rdd8) 29... Qxd2+ $11 {[%emt 0:00:16]} 30. Kxd2 {[%emt 0:00:17] Intending Rh7+ and mate.} Rf2+ {[%emt 0:00:04]} 31. Ke3 $1 {[%emt 0:01:54] Threatening mate with Rh7+.} Rxc2 {[%emt 0:00:02]} 32. Rhh8 $2 {[%emt 0:00:43][%mdl 8192] [#]} (32. Rxe5 $15 Rh2 (32... Rxb2 33. Rg5+ Kf8 34. Rh8+ Ke7 35. Ne4 $18) 33. Rg1) 32... Be6 $1 $19 {[%emt 0:00:17][%mdl 512] ( -> ...g2)} 33. Rxa8 {[%emt 0:01:21]} (33. Ne2 Rxe8) 33... g2 {[%emt 0:00:05] Weighted Error Value: White=0.94/Black=0.43.  Loses game:     	White=1     	---        Mistake:       	---       	Black=5      Inaccurate:     	White=1     	Black=2      OK:         	White=8     	Black=5      Best:        	White=3     	Black=3      Strong:       	White=1     	Black=1      Brilliant:      	---       	Black=1} 0-1

[Event "Prague Festival Masters 2024"]
[Site "Prague"]
[Date "2024.02.29"]
[Round "3.2"]
[White "Bartel, Mateusz"]
[Black "Nguyen, Thai Dai Van"]
[Result "0-1"]
[ECO "C50"]
[WhiteElo "2657"]
[BlackElo "2632"]
[Annotator "RC"]
[PlyCount "164"]
[EventDate "2024.02.22"]
[EventType "tourn"]
[EventCountry "CZE"]
[SourceTitle "playchess.com"]
[Source "ChessBase"]
[SourceQuality "1"]
[TimeControl "40/5400+30:1800+30"]

1. e4 {[%emt 0:00:04]} e5 {[%emt 0:00:08]} 2. Nf3 {[%emt 0:00:06]} Nc6 {[%emt 0:00:06]} 3. Bc4 {[%emt 0:00:05]} Bc5 {[%emt 0:00:10]} 4. d3 {[%emt 0:00:07]} d6 {[%emt 0:01:07]} 5. a4 {[%emt 0:00:17]} Nf6 {[%emt 0:01:03]} 6. a5 {[%emt 0:00:31]} a6 {[%emt 0:00:19]} 7. c3 {[%emt 0:00:10]} h6 {[%emt 0:06:40]} 8. O-O {[%emt 0:00:13]} O-O {[%emt 0:00:07]} 9. h3 {[%emt 0:00:11]} Ba7 {[%emt 0:01:45]} 10. Be3 {[%emt 0:00:09]} d5 {[%emt 0:00:08]} 11. exd5 {[%emt 0:00:23]} Nxd5 {[%emt 0:00:09]} 12. Bxa7 {[%emt 0:00:12]} Rxa7 {[%emt 0:00:05]} 13. Re1 {[%emt 0:00:24]} Nf4 {[%emt 0:02:16]} 14. d4 {[%emt 0:07:54]} exd4 {[%emt 0:00:22]} 15. cxd4 {[%emt 0:00:03]} Be6 {[%emt 0:32:23]} 16. Bf1 {[%emt 0:00:11]} Qd6 {[%emt 0:14:31]} 17. Nc3 {[%emt 0:04:43]} Rd8 {[%emt 0:05:21]} 18. Ne4 {[%emt 0:05:34]} Qf8 {[%emt 0:00:55]} 19. Qc1 {[%emt 0:07:58]} Ng6 {[%emt 0:00:44]} 20. Ra3 {[%emt 0:02:13]} Bd5 {[%emt 0:01:26]} 21. h4 {[%emt 0:21:59]} Raa8 {[%emt 0:06:55]} 22. h5 {[%emt 0:06:47]} Nge7 {[%emt 0:00:02]} 23. Ng3 {[%emt 0:02:58]} Rd6 {[%emt 0:04:39]} 24. Ne4 {[%emt 0:07:14]} Re6 {[%emt 0:02:35]} 25. Ne5 {[%emt 0:06:21]} Nxe5 {[%emt 0:03:38]} 26. dxe5 {[%emt 0:00:11]} Rxe5 {[%emt 0:00:14]} 27. Qf4 {[%emt 0:01:06]} Re6 {[%emt 0:04:10]} 28. Rae3 {[%emt 0:00:07]} Bxe4 {[%emt 0:01:41]} 29. Rxe4 {[%emt 0:00:03]} Nd5 {[%emt 0:00:06]} 30. Qf3 {[%emt 0:06:53]} Rxe4 {[%emt 0:00:05]} 31. Rxe4 {[%emt 0:00:06]} c6 {[%emt 0:01:37]} 32. Qb3 {[%emt 0:00:37]} Rb8 {[%emt 0:03:10]} 33. Bc4 {[%emt 0:01:54]} Qd8 {[%emt 0:00:40]} 34. Rg4 {[%emt 0:00:58]} Qc7 {[%emt 0:01:36]} 35. Bxd5 {[%emt 0:06:43]} cxd5 {[%emt 0:00:02]} 36. Qe3 {[%emt 0:00:08]} Qd6 {[%emt 0:03:18]} 37. Qd4 {[%emt 0:01:48]} f6 {[%emt 0:00:10]} 38. Qd2 {[%emt 0:00:06]} Re8 {[%emt 0:00:51]} 39. g3 {[%emt 0:00:02]} Qe6 {[%emt 0:01:30]} 40. Rd4 {[%emt 0:00:44]} Qe1+ {[%emt 0:02:51]} 41. Qxe1 {[%emt 0:31:38]} Rxe1+ {[%emt 0:30:51]} 42. Kg2 {[%emt 0:00:02]} Re5 {[%emt 0:00:00]} 43. Rb4 {[%emt 0:00:00]} d4 {[%emt 0:00:00]} 44. Rxb7 {[%emt 0:00:00]} Rd5 {[%emt 0:00:00]} 45. Kf1 {[%emt 0:00:00]} d3 {[%emt 0:00:00]} 46. Ke1 {[%emt 0:00:00]} Rxa5 {[%emt 0:00:00]} 47. Rb6 {[%emt 0:00:00]} Rxh5 {[%emt 0:00:00]} 48. Rxa6 {[%emt 0:00:00]} Rb5 {[%emt 0:00:00]} 49. Ra3 {[%emt 0:00:00]} Re5+ {[%emt 0:00:00]} 50. Kd1 {[%emt 0:00:00]} Re2 {[%emt 0:00:00]} 51. b4 {[%emt 0:00:00]} Rxf2 {[%emt 0:00:00]} 52. Rb3 {[%emt 0:00:00]} Kf7 {[%emt 0:03:34]} 53. b5 {[%emt 0:00:00]} Rc2 {[%emt 0:00:25]} 54. Rxd3 {[%emt 0:00:34]} Rb2 {[%emt 0:01:16]} 55. Rd7+ {[%emt 0:00:07]} Kg6 {[%emt 0:00:15]} 56. Rd5 {[%emt 0:00:50]} f5 {[%emt 0:01:17]} 57. Kc1 {[%emt 0:01:03]} Rb3 {[%emt 0:00:52]} 58. Kc2 {[%emt 0:00:58]} Rxg3 {[%emt 0:00:15]} 59. b6 {[%emt 0:13:15]} Re3 {[%emt 0:00:01]} 60. b7 {[%emt 0:00:07]} Re8 {[%emt 0:00:03]} 61. Rb5 {[%emt 0:00:17]} Rb8 {[%emt 0:00:04]} 62. Kd3 {[%emt 0:00:04]} Kg5 {[%emt 0:01:43]} 63. Ke3 {[%emt 0:00:02]} Kg4 {[%emt 0:00:36]} 64. Rb1 {[%emt 0:00:22]} g5 {[%emt 0:00:47]} 65. Rg1+ {[%emt 0:00:12]} Kh5 {[%emt 0:00:03]} 66. Rb1 {[%emt 0:00:06]} Kg4 {[%emt 0:00:20]} 67. Rg1+ {[%emt 0:00:06]} Kh3 {[%emt 0:00:32]} 68. Rb1 {[%emt 0:00:18]} Kg3 {[%emt 0:00:48]} 69. Rg1+ {[%emt 0:00:06]} Kh2 {[%emt 0:00:03]} 70. Rb1 {[%emt 0:00:04]} Kg2 {[%emt 0:00:13]} 71. Rb2+ {[%emt 0:01:35]} Kg3 {[%emt 0:00:02]} 72. Ke2 {[%emt 0:00:08]} f4 {[%emt 0:00:43]} 73. Kf1 {[%emt 0:00:05]} f3 {[%emt 0:00:51]} 74. Kg1 {[%emt 0:00:02]} g4 {[%emt 0:00:45]} 75. Rg2+ {[%emt 0:00:05]} Kf4 {[%emt 0:00:04]} 76. Rb2 {[%emt 0:00:04]} Kg3 {[%emt 0:00:03]} 77. Rg2+ {[%emt 0:00:04]} Kf4 {[%emt 0:00:06]} 78. Rb2 {[%emt 0:00:05]} g3 {[%emt 0:01:05]} 79. Rb4+ {[%emt 0:00:07]} Kg5 {[%emt 0:00:05]} 80. Rb5+ {[%emt 0:00:29]} Kg4 {[%emt 0:00:07]} 81. Rb4+ {[%emt 0:00:04]} Kh3 {[%emt 0:00:10]} 82. Rb6 {[%emt 0:01:07]} h5 {[%emt 0:00:39]} 0-1

[Event "Prague Festival Masters 2024"]
[Site "Prague"]
[Date "2024.02.29"]
[Round "3.3"]
[White "Abdusattorov, Nodirbek"]
[Black "Navara, David"]
[Result "1-0"]
[ECO "C54"]
[WhiteElo "2727"]
[BlackElo "2679"]
[Annotator "TA"]
[PlyCount "71"]
[EventDate "2024.02.22"]
[EventType "tourn"]
[EventCountry "CZE"]
[SourceTitle "playchess.com"]
[Source "ChessBase"]
[SourceQuality "1"]
[TimeControl "40/5400+30:1800+30"]

{[%evp 34,71,91,85,216,82,133,132,108,-43,101,144,102,108,100,8,23,14,17,0,0,-132,-134,-234,530,534,652,575,654,633,660,668,858,846,4914,4866,2885,1652,4774,1291]} 1. e4 {[%emt 0:00:34]} e5 {[%emt 0:00:04]} 2. Nf3 {[%emt 0:00:24]} Nc6 {[%emt 0:00:05]} 3. Bc4 {[%emt 0:00:21]} Bc5 {[%emt 0:00:08]} 4. c3 {[%emt 0:00:07]} Nf6 {[%emt 0:00:05]} 5. d3 {[%emt 0:00:07]} d6 {[%emt 0:00:21]} 6. b4 {[%emt 0:00:12]} Bb6 {[%emt 0:00:07]} 7. a4 {[%emt 0:00:06]} a5 {[%emt 0:00:04]} 8. b5 {[%emt 0:00:10]} Ne7 {[%emt 0:00:05]} 9. Nbd2 {[%emt 0:00:09]} O-O {[%emt 0:03:03]} 10. O-O {[%emt 0:00:29]} Ng6 {[%emt 0:02:38]} 11. d4 {[%emt 0:00:55] C54: Giuoco Piano: 4 c3 Nf6, main lines with 5 d4 and 5 d3.} exd4 {[%emt 0:12:37]} 12. cxd4 {[%emt 0:01:00]} d5 {[%emt 0:01:51]} 13. exd5 {[%emt 0:00:45]} Nxd5 {[%emt 0:07:14]} 14. Qb3 {[%emt 0:01:35]} c6 $146 {[%emt 0:06:41]} ({Predecessor:} 14... Be6 15. Ne4 Ndf4 16. Nc5 Ne2+ 17. Kh1 Nxd4 18. Nxd4 Qxd4 19. Nxe6 fxe6 20. Be3 Qh4 21. Bxe6+ {1-0 Keller,T (2316)-Welzel,P (2166) NRW Class1 1617 2016 (7)}) 15. Re1 {[%emt 0:05:17]} Nb4 {[%emt 0:07:30]} 16. Ne4 {[%emt 0:06:20]} cxb5 {[%emt 0:01:45]} 17. axb5 {[%emt 0:02:45]} Bf5 {[%emt 0:03:42]} 18. Nfg5 {[%emt 0:05:47]} Qd7 {[%emt 0:03:42]} (18... Nh8 $16) 19. Ba3 {[%emt 0:06:04]} (19. Nxf7 $1 $18 Rxf7 20. Ng5) 19... Rad8 {[%emt 0:06:39]} (19... Rab8 $142) 20. Bxb4 $16 {[%emt 0:11:49]} axb4 {[%emt 0:00:15]} 21. Nc5 $2 {[%emt 0:01:33]} (21. Nxf7 $1 $16 Rxf7 22. Ng5) 21... Qc7 {[%emt 0:04:23]} (21... Qxd4 $15 {keeps the upper hand.} 22. Bxf7+ (22. Nxf7 $2 Rc8 $17) 22... Kh8 23. Bxg6 Bxg6 (23... Qxc5 24. Nf7+ Rxf7 25. Bxf7 $14)) 22. Rac1 $1 $16 {[%emt 0:02:58]} Nf4 {[%emt 0:05:20]} (22... Rxd4 $2 23. Bxf7+ Kh8 (23... Rxf7 $2 24. Re8+ Nf8 25. Rxf8+ Kxf8 26. Nce6+ Bxe6 27. Nxe6+ Kg8 28. Nxc7 $18) 24. Bxg6 hxg6 25. Nce6 Bxe6 26. Qxe6 $18 (26. Nxe6 Qf7 $18)) 23. Bxf7+ {[%emt 0:12:56]} (23. Qxb4 $6 Ba5 24. Nxf7 Rxd4 (24... Bxb4 25. Nxd8+ Kh8 26. Nf7+ Kg8 27. Ne5+ Kh8 28. Nf7+ Kg8 29. Ng5+ Kh8 30. Nf7+ $11) (24... Rxf7 $2 25. Bxf7+ Qxf7 26. Qxa5 $18) 25. Ne5+ Kh8 $11) 23... Kh8 {[%emt 0:04:08]} (23... Rxf7 $2 24. Nd3 (24. Na4 $2 Ne2+ 25. Kf1 Nxc1 $19) 24... Qd7 25. Nxf4 $18) 24. Qf3 {[%emt 0:00:06]} (24. Qxb4 Qd6 (24... Rxf7 $2 25. Nce6 $18) 25. Bb3 Qf6 26. Nf7+ Rxf7 27. Bxf7 Qxf7 $17) (24. g3 $1 $16 {And now Be6 would win.} Nh3+ 25. Nxh3 Bxh3 (25... Qxf7 26. Qxf7 Rxf7 27. Ng5 $16) 26. Bd5 (26. Be6 Rxd4 27. Bxh3 Bxc5 $11) 26... Bxc5 27. dxc5) 24... h6 $1 $11 {[%emt 0:06:34]} (24... Rxd4 $2 25. Nce6 (25. Qxb7 $2 Qxb7 26. Nxb7 Nd3 $19) 25... Qe7 26. Nxf8 (26. Nxf4 $2 Qxg5 27. g3 Rd2 $19) 26... Qxg5 27. h4 Nh3+ 28. Qxh3 $18) 25. Nxb7 {[%emt 0:07:28]} Ne2+ $1 {[%emt 0:10:11]} 26. Qxe2 {[%emt 0:04:36]} (26. Kh1 $5 Nxd4 (26... Nxc1 27. Qxf5) 27. Rxc7 (27. Qxf5 Nxf5 28. Rxc7 Bxc7 $19) 27... Nxf3 28. Nxf3 Bxc7 29. Nxd8 Rxd8 30. Bb3 $11) 26... Qxb7 {[%emt 0:00:05]} 27. Rc6 {[%emt 0:01:59]} (27. Qh5 $11 {was the only way to keep the balance.} Bxd4 28. Kh1 Bxf2 (28... Qxb5 29. Bc4 $16) 29. Re5) 27... Bxd4 $1 $17 {[%emt 0:00:18]} (27... hxg5 28. Qh5+ Bh7 29. Bg6 Bxd4 30. Qxh7#) 28. Kh1 {[%emt 0:16:24] [#]} (28. Qh5 $17 Bh7 29. Ne6 Bxf2+ 30. Kxf2 Qxf7+ 31. Qxf7 Rxf7+ 32. Kg1) 28... Rxf7 $4 {[%emt 0:01:24][%mdl 8192] [#]} ({Weaker is} 28... hxg5 29. Qh5+ Bh7 30. Bg6 Bxf2 31. Qxh7#) (28... Bh7 $1 $19 {avoids the disaster.} 29. Qh5 (29. Nxh7 $2 Rxf7 30. Qc4 Bc3 $19) 29... Bxf2 (29... hxg5 30. Bg6 Bxf2 31. Qxh7#)) 29. Rd6 $1 $18 {[%emt 0:00:09]} Rc8 {[%emt 0:07:04]} 30. Nxf7+ {[%emt 0:00:16]} Qxf7 {[%emt 0:00:07]} 31. Rxd4 {[%emt 0:00:03]} b3 {[%emt 0:00:07]} 32. b6 {[%emt 0:02:19]} Rc2 {[%emt 0:02:15]} 33. Qf3 {[%emt 0:00:32]} b2 {[%emt 0:02:21]} 34. b7 {[%emt 0:00:21]} Qf8 {[%emt 0:00:26]} 35. Rdd1 {[%emt 0:00:53]} Rc5 {[%emt 0:00:30]} 36. Qb3 {[%emt 0:00:12]} (36. g4 $142 Rb5 37. gxf5) 1-0

[Event "Prague Festival Masters 2024"]
[Site "Prague"]
[Date "2024.02.29"]
[Round "3.4"]
[White "Gukesh D"]
[Black "Vidit, Santosh Gujrathi"]
[Result "1/2-1/2"]
[ECO "C48"]
[WhiteElo "2725"]
[BlackElo "2742"]
[Annotator "TA"]
[PlyCount "75"]
[EventDate "2024.02.22"]
[EventType "tourn"]
[EventCountry "CZE"]
[SourceTitle "playchess.com"]
[Source "ChessBase"]
[SourceQuality "1"]
[TimeControl "40/5400+30:1800+30"]

{[%evp 11,75,0,9,11,31,22,39,29,15,24,41,29,40,37,50,33,48,44,53,20,81,85,83,87,100,78,87,17,14,18,69,70,57,41,45,19,28,24,25,16,48,49,48,53,48,46,53,51,53,31,31,26,29,6,8,0,18,16,11,11,14,8,8,8,8,0]} 1. e4 {[%emt 0:00:04]} e5 {[%emt 0:01:09]} 2. Nf3 {[%emt 0:00:15]} Nc6 {[%emt 0:00:16]} 3. Bb5 {[%emt 0:00:24]} Nf6 {[%emt 0:00:46]} 4. d3 {[%emt 0:00:22]} Bc5 {[%emt 0:00:13]} 5. O-O {[%emt 0:00:37]} d6 {[%emt 0:06:13]} 6. Nc3 {[%emt 0:05:31]} O-O {[%emt 0:07:58]} 7. Na4 {[%emt 0:12:52]} Nd4 {[%emt 0:11:05]} 8. Nxc5 {[%emt 0:03:51] [#] Black must now prevent Nxd4.} Nxb5 {[%emt 0:01:22]} 9. a4 {[%emt 0:06:38] White is slightly better.} dxc5 {[%emt 0:12:31]} 10. axb5 {[%emt 0:00:07]} Qd6 {[%emt 0:00:26]} 11. Nh4 {[%emt 0:15:26]} Rd8 {[%emt 0:13:20][%cal Of6e4]} 12. Qe2 {[%emt 0:10:32]} Bg4 {[%emt 0:01:03]} 13. f3 {[%emt 0:02:20]} Be6 {[%emt 0:00:41][%cal Oc5c4]} 14. b3 {[%emt 0:01:59]} Qb6 {[%emt 0:06:42]} 15. Kh1 {[%emt 0:03:44]} Qxb5 {[%emt 0:00:51] [#]} (15... Ne8 $11) 16. Bg5 $1 $16 {[%emt 0:00:56]} a5 {[%emt 0:08:03]} 17. Qe3 {[%emt 0:01:27]} a4 {[%emt 0:05:46]} 18. bxa4 {[%emt 0:03:44]} Rxa4 {[%emt 0:00:10]} 19. Rxa4 {[%emt 0:03:05]} ({Better is} 19. Rab1 $16 Rb4 20. Rbe1) 19... Qxa4 $11 {[%emt 0:00:05]} 20. Qxc5 {[%emt 0:00:06]} Qc6 {[%emt 0:07:46]} (20... Qd4 $11 21. Qxc7 Rc8) 21. Qxc6 $14 {[%emt 0:17:36]} (21. Qxe5 Qxc2 22. Bxf6 Qxd3) 21... bxc6 {[%emt 0:00:03]} 22. f4 {[%emt 0:00:17]} exf4 {[%emt 0:02:55]} 23. Bxf4 {[%emt 0:02:40]} Rc8 {[%emt 0:05:40]} 24. Be3 {[%emt 0:03:15]} Ra8 {[%emt 0:02:40]} 25. Nf3 {[%emt 0:00:09]} Ra2 {[%emt 0:00:46]} 26. Rc1 {[%emt 0:00:33]} Nd7 {[%emt 0:00:51]} 27. Bf4 {[%emt 0:00:39]} c5 {[%emt 0:03:35][%cal Bc6c5,Bc5c4][%mdl 32]} 28. Bxc7 {[%emt 0:00:02]} h6 {[%emt 0:00:07]} 29. Kg1 {[%emt 0:01:19]} f5 {[%emt 0:00:21]} 30. Nd2 {[%emt 0:02:22]} fxe4 {[%emt 0:00:35]} 31. Nxe4 {[%emt 0:00:11]} c4 {[%emt 0:00:16]} 32. d4 {[%emt 0:01:53]} Bf5 {[%emt 0:00:19] The position is equal.} 33. Nc3 {[%emt 0:00:29]} Rxc2 {[%emt 0:00:50]} 34. Rxc2 {[%emt 0:00:01]} Bxc2 {[%emt 0:00:01]} 35. Kf2 {[%emt 0:00:37]} Kf7 {[%emt 0:01:51]} 36. Ke3 {[%emt 0:00:18]} Nf6 {[%emt 0:00:13]} 37. d5 {[%emt 0:02:02]} Be4 {[%emt 0:00:13]} 38. Nxe4 {[%emt 0:00:05] Weighted Error Value: White=0.09 (flawless) /Black=0.12 (very precise) .  Mistake:       	White=1     	Black=2      Inaccurate:     	White=2     	Black=1      OK:         	White=10    	Black=14     Best:        	White=4     	---        Strong:       	White=1     	---} 1/2-1/2

[Event "Prague Festival Masters 2024"]
[Site "Prague"]
[Date "2024.02.29"]
[Round "3.5"]
[White "Keymer, Vincent"]
[Black "Maghsoodloo, Parham"]
[Result "1/2-1/2"]
[ECO "A05"]
[WhiteElo "2743"]
[BlackElo "2740"]
[Annotator "TA"]
[PlyCount "66"]
[EventDate "2024.02.22"]
[EventType "tourn"]
[EventCountry "CZE"]
[SourceTitle "playchess.com"]
[Source "ChessBase"]
[SourceQuality "1"]
[TimeControl "40/5400+30:1800+30"]

{[%evp 9,66,9,8,10,21,18,14,7,20,21,19,20,14,17,4,14,29,27,35,28,35,-26,35,48,48,34,39,37,29,51,39,35,69,65,126,119,124,99,86,83,111,82,91,87,136,133,134,136,132,106,137,134,181,0,0,-152,0,0,0]} 1. Nf3 {[%emt 0:00:05]} Nf6 {[%emt 0:00:13]} 2. g3 {[%emt 0:00:15]} b5 {[%emt 0:02:06]} 3. Bg2 {[%emt 0:03:10]} Bb7 {[%emt 0:00:17]} 4. O-O {[%emt 0:00:05]} e6 {[%emt 0:01:27]} 5. b3 {[%emt 0:00:20]} c5 {[%emt 0:07:10]} 6. c4 {[%emt 0:01:23]} bxc4 {[%emt 0:04:24]} 7. bxc4 {[%emt 0:00:13]} Nc6 {[%emt 0:00:05]} 8. Nc3 {[%emt 0:01:12]} Rb8 {[%emt 0:07:47]} 9. Rb1 {[%emt 0:07:24]} Ba8 {[%emt 0:04:24]} 10. Rxb8 {[%emt 0:03:51]} Qxb8 {[%emt 0:00:27]} 11. d4 {[%emt 0:05:02]} cxd4 {[%emt 0:02:24]} 12. Nxd4 {[%emt 0:01:19]} Bb4 {[%emt 0:06:21]} 13. Nxc6 {[%emt 0:30:33]} Bxc6 {[%emt 0:00:55]} 14. Bxc6 {[%emt 0:00:03]} dxc6 {[%emt 0:03:21] [#]} 15. Qa4 {[%emt 0:05:39]} O-O {[%emt 0:08:04]} ({Black should try} 15... Bxc3 $11 16. Qxc6+ Ke7 17. Ba3+ Bb4) 16. Bf4 $36 {[%emt 0:00:48][%mdl 2048] Black is under pressure.} e5 {[%emt 0:02:03] [#]} 17. Bxe5 {[%emt 0:00:04]} Qxe5 {[%emt 0:00:06]} 18. Qxb4 {[%emt 0:00:02]} h5 {[%emt 0:04:59][%cal Bh7h5,Bh5h4][%mdl 32]} 19. Rd1 {[%emt 0:04:42]} a5 {[%emt 0:05:50]} 20. Qb2 {[%emt 0:08:16]} h4 {[%emt 0:02:15]} 21. Qd2 $1 {[%emt 0:01:24]} (21. gxh4 $2 {too greedy.} Ng4 22. Kf1 Qxh2 $19) 21... Qh5 {[%emt 0:05:58]} (21... Ng4 $14) 22. f3 $16 {[%emt 0:02:25]} Re8 {[%emt 0:06:43]} 23. g4 {[%emt 0:03:37]} Qc5+ {[%emt 0:11:37]} 24. Qd4 {[%emt 0:00:03]} Qg5 {[%emt 0:00:04]} 25. h3 {[%emt 0:02:50]} (25. Kf2 {looks sharper.} Re6 26. Rd3 Qc1 27. Kg2) 25... c5 {[%emt 0:00:54]} 26. Qf2 {[%emt 0:01:28]} Qe5 {[%emt 0:02:15]} ({Better is} 26... Qf4) 27. Rd3 {[%emt 0:00:54]} Qf4 {[%emt 0:00:08]} 28. Qxh4 {[%emt 0:03:22]} Qxc4 {[%emt 0:00:05][%cal Oe8e2]} 29. Qf2 {[%emt 0:00:21]} Qf4 {[%emt 0:01:05]} 30. Kg2 {[%emt 0:01:32]} c4 {[%emt 0:03:27] [#]} (30... Qc4 $16 31. h4 Re5) 31. Rd4 $2 {[%emt 0:04:17]} (31. Rd1 $1 $18) 31... Qc1 $1 $11 {[%emt 0:00:28]} 32. Ne4 {[%emt 0:04:52] [#]} (32. Rxc4 $11 Nd5 33. Re4 (33. Nxd5 $2 {loses.} Qxc4 34. e4 Rb8 $17) 33... Ne3+ 34. Kh2 Nf1+ 35. Kg2 Ne3+ 36. Kh2 Nf1+ 37. Kg2 Ne3+) 32... Nxe4 $2 {[%emt 0:00:07]} (32... c3 $1 $17 {[%cal Rc3c2] ...c2 is the strong threat.} 33. Nd6 (33. Nxf6+ $2 gxf6 34. Rc4 Qd1 $19) 33... Rb8) 33. fxe4 {[%emt 0:00:04]} Qb2 {[%emt 0:05:04] Weighted Error Value: White=0.23 (precise) /Black=0.18 (very precise) .  Missed win:     	White=1     	---        Mistake:       	White=2     	Black=5      Inaccurate:     	---       	Black=1      OK:         	White=14    	Black=8      Best:        	White=2     	Black=2      Strong:       	White=1     	Black=1} 1/2-1/2